{"text_format":"3","workbook":"xlsx","n_sheets":3,"sheets":["Задания","Представление \"Месяц\"","Представление \"Неделя\""],"not_rendered":{"images":4,"defined_names":16},"read":"whole","date_system":"1900"}

{"sheet":"Задания","index":0,"n_rows":15,"n_cols":3,"rows_kept":15}
[null,"ПРЕДСТАВЛЕНИЕ \"МЕСЯЦ\"","ПРЕДСТАВЛЕНИЕ \"НЕДЕЛЯ\""]
[null," ЗАДАНИЯ"]
[null,"ОПИСАНИЕ","ДАТА ВЫПОЛНЕНИЯ"]
[null,"Задание 1",{"$f":"TODAY()","v":"2022-12-13"}]
[null,"Задание 2",{"$f":"TODAY()+15","v":"2022-12-28"}]
[null,"Задание 3",{"$f":"TODAY()+30","v":"2023-01-12"}]
[null,"Задание 4",{"$f":"TODAY()+45","v":"2023-01-27"}]
[null,"Задание 5",{"$f":"TODAY()+60","v":"2023-02-11"}]
[null,"Задание 6",{"$f":"TODAY()+75","v":"2023-02-26"}]
[null,"Задание 7",{"$f":"TODAY()+90","v":"2023-03-13"}]
[null,"Задание 8",{"$f":"TODAY()+105","v":"2023-03-28"}]
[null,"Задание 9",{"$f":"TODAY()+115","v":"2023-04-07"}]
[null,"Задание 10",{"$f":"TODAY()+130","v":"2023-04-22"}]
[null,"Задание 11",{"$f":"TODAY()+145","v":"2023-05-07"}]
[null,"Задание 12",{"$f":"TODAY()+160","v":"2023-05-22"}]

{"sheet":"Представление \"Месяц\"","index":1,"n_rows":17,"n_cols":8,"rows_kept":17}
[null,"ЗАДАНИЯ","ПРЕДСТАВЛЕНИЕ \"НЕДЕЛЯ\""]
[null,"Выберите месяц:","Введите год:"]
[null,{"$f":"TEXT(TODAY(),\"ММММ\")","v":"Декабрь"},{"$f":"YEAR(TODAY())","v":2022}]
[null," ПРЕДСТАВЛЕНИЕ \"МЕСЯЦ\""]
[null,"ПОНЕДЕЛЬНИК","ВТОРНИК","СРЕДА","ЧЕТВЕРГ","ПЯТНИЦА","СУББОТА","ВОСКРЕСЕНЬЕ"]
[null,{"$f":"IF(WEEKDAY(DATEVALUE(\" 1 \"&МесМесяц&МесГод),2)=COLUMN(A$2),1,IF(LEN(A6)>0,A6+1,\"\"))","v":""},"","",1,2,3,4]
[null,{"$f":"IF(LEN(B6)=0,\"\",IF(COUNTIF(Задания[ДАТА ВЫПОЛНЕНИЯ],DATE(МесГод,МесНомерМесяца,B6))>0,\"Срок выполнения задания!\",\"\"))","v":""},{"$f":"IF(LEN(C6)=0,\"\",IF(COUNTIF(Задания[ДАТА ВЫПОЛНЕНИЯ],DATE(МесГод,МесНомерМесяца,C6))>0,\"Срок выполнения задания!\",\"\"))","v":""},{"$f":"IF(LEN(D6)=0,\"\",IF(COUNTIF(Задания[ДАТА ВЫПОЛНЕНИЯ],DATE(МесГод,МесНомерМесяца,D6))>0,\"Срок выполнения задания!\",\"\"))","v":""},{"$f":"IF(LEN(E6)=0,\"\",IF(COUNTIF(Задания[ДАТА ВЫПОЛНЕНИЯ],DATE(МесГод,МесНомерМесяца,E6))>0,\"Срок выполнения задания!\",\"\"))","v":""},{"$f":"IF(LEN(F6)=0,\"\",IF(COUNTIF(Задания[ДАТА ВЫПОЛНЕНИЯ],DATE(МесГод,МесНомерМесяца,F6))>0,\"Срок выполнения задания!\",\"\"))","v":""},{"$f":"IF(LEN(G6)=0,\"\",IF(COUNTIF(Задания[ДАТА ВЫПОЛНЕНИЯ],DATE(МесГод,МесНомерМесяца,G6))>0,\"Срок выполнения задания!\",\"\"))","v":""},{"$f":"IF(LEN(H6)=0,\"\",IF(COUNTIF(Задания[ДАТА ВЫПОЛНЕНИЯ],DATE(МесГод,МесНомерМесяца,H6))>0,\"Срок выполнения задания!\",\"\"))","v":""}]
[null,{"$f":"IF(LEN(H6)>0,IF(H6=DAY(DATE(МесГод,МесНомерМесяца+1,0)),\"\",H6+1),\"\")","v":5},{"$f":"IF(LEN(B8)>0,IF(B8=DAY(DATE(МесГод,МесНомерМесяца+1,0)),\"\",B8+1),\"\")","v":6},7,8,9,10,11]
[null,{"$f":"IF(LEN(B8)=0,\"\",IF(COUNTIF(Задания[ДАТА ВЫПОЛНЕНИЯ],DATE(МесГод,МесНомерМесяца,B8))>0,\"Срок выполнения задания!\",\"\"))","v":""},{"$f":"IF(LEN(C8)=0,\"\",IF(COUNTIF(Задания[ДАТА ВЫПОЛНЕНИЯ],DATE(МесГод,МесНомерМесяца,C8))>0,\"Срок выполнения задания!\",\"\"))","v":""},{"$f":"IF(LEN(D8)=0,\"\",IF(COUNTIF(Задания[ДАТА ВЫПОЛНЕНИЯ],DATE(МесГод,МесНомерМесяца,D8))>0,\"Срок выполнения задания!\",\"\"))","v":""},{"$f":"IF(LEN(E8)=0,\"\",IF(COUNTIF(Задания[ДАТА ВЫПОЛНЕНИЯ],DATE(МесГод,МесНомерМесяца,E8))>0,\"Срок выполнения задания!\",\"\"))","v":""},{"$f":"IF(LEN(F8)=0,\"\",IF(COUNTIF(Задания[ДАТА ВЫПОЛНЕНИЯ],DATE(МесГод,МесНомерМесяца,F8))>0,\"Срок выполнения задания!\",\"\"))","v":""},{"$f":"IF(LEN(G8)=0,\"\",IF(COUNTIF(Задания[ДАТА ВЫПОЛНЕНИЯ],DATE(МесГод,МесНомерМесяца,G8))>0,\"Срок выполнения задания!\",\"\"))","v":""},{"$f":"IF(LEN(H8)=0,\"\",IF(COUNTIF(Задания[ДАТА ВЫПОЛНЕНИЯ],DATE(МесГод,МесНомерМесяца,H8))>0,\"Срок выполнения задания!\",\"\"))","v":""}]
[null,{"$f":"IF(LEN(H8)>0,IF(H8=DAY(DATE(МесГод,МесНомерМесяца+1,0)),\"\",H8+1),\"\")","v":12},{"$f":"IF(LEN(B10)>0,IF(B10=DAY(DATE(МесГод,МесНомерМесяца+1,0)),\"\",B10+1),\"\")","v":13},14,15,16,17,18]
[null,{"$f":"IF(LEN(B10)=0,\"\",IF(COUNTIF(Задания[ДАТА ВЫПОЛНЕНИЯ],DATE(МесГод,МесНомерМесяца,B10))>0,\"Срок выполнения задания!\",\"\"))","v":""},{"$f":"IF(LEN(C10)=0,\"\",IF(COUNTIF(Задания[ДАТА ВЫПОЛНЕНИЯ],DATE(МесГод,МесНомерМесяца,C10))>0,\"Срок выполнения задания!\",\"\"))","v":"Срок выполнения задания!"},{"$f":"IF(LEN(D10)=0,\"\",IF(COUNTIF(Задания[ДАТА ВЫПОЛНЕНИЯ],DATE(МесГод,МесНомерМесяца,D10))>0,\"Срок выполнения задания!\",\"\"))","v":""},{"$f":"IF(LEN(E10)=0,\"\",IF(COUNTIF(Задания[ДАТА ВЫПОЛНЕНИЯ],DATE(МесГод,МесНомерМесяца,E10))>0,\"Срок выполнения задания!\",\"\"))","v":""},{"$f":"IF(LEN(F10)=0,\"\",IF(COUNTIF(Задания[ДАТА ВЫПОЛНЕНИЯ],DATE(МесГод,МесНомерМесяца,F10))>0,\"Срок выполнения задания!\",\"\"))","v":""},{"$f":"IF(LEN(G10)=0,\"\",IF(COUNTIF(Задания[ДАТА ВЫПОЛНЕНИЯ],DATE(МесГод,МесНомерМесяца,G10))>0,\"Срок выполнения задания!\",\"\"))","v":""},{"$f":"IF(LEN(H10)=0,\"\",IF(COUNTIF(Задания[ДАТА ВЫПОЛНЕНИЯ],DATE(МесГод,МесНомерМесяца,H10))>0,\"Срок выполнения задания!\",\"\"))","v":""}]
[null,{"$f":"IF(LEN(H10)>0,IF(H10=DAY(DATE(МесГод,МесНомерМесяца+1,0)),\"\",H10+1),\"\")","v":19},{"$f":"IF(LEN(B12)>0,IF(B12=DAY(DATE(МесГод,МесНомерМесяца+1,0)),\"\",B12+1),\"\")","v":20},21,22,23,24,25]
[null,{"$f":"IF(LEN(B12)=0,\"\",IF(COUNTIF(Задания[ДАТА ВЫПОЛНЕНИЯ],DATE(МесГод,МесНомерМесяца,B12))>0,\"Срок выполнения задания!\",\"\"))","v":""},{"$f":"IF(LEN(C12)=0,\"\",IF(COUNTIF(Задания[ДАТА ВЫПОЛНЕНИЯ],DATE(МесГод,МесНомерМесяца,C12))>0,\"Срок выполнения задания!\",\"\"))","v":""},{"$f":"IF(LEN(D12)=0,\"\",IF(COUNTIF(Задания[ДАТА ВЫПОЛНЕНИЯ],DATE(МесГод,МесНомерМесяца,D12))>0,\"Срок выполнения задания!\",\"\"))","v":""},{"$f":"IF(LEN(E12)=0,\"\",IF(COUNTIF(Задания[ДАТА ВЫПОЛНЕНИЯ],DATE(МесГод,МесНомерМесяца,E12))>0,\"Срок выполнения задания!\",\"\"))","v":""},{"$f":"IF(LEN(F12)=0,\"\",IF(COUNTIF(Задания[ДАТА ВЫПОЛНЕНИЯ],DATE(МесГод,МесНомерМесяца,F12))>0,\"Срок выполнения задания!\",\"\"))","v":""},{"$f":"IF(LEN(G12)=0,\"\",IF(COUNTIF(Задания[ДАТА ВЫПОЛНЕНИЯ],DATE(МесГод,МесНомерМесяца,G12))>0,\"Срок выполнения задания!\",\"\"))","v":""},{"$f":"IF(LEN(H12)=0,\"\",IF(COUNTIF(Задания[ДАТА ВЫПОЛНЕНИЯ],DATE(МесГод,МесНомерМесяца,H12))>0,\"Срок выполнения задания!\",\"\"))","v":""}]
[null,{"$f":"IF(LEN(H12)>0,IF(H12=DAY(DATE(МесГод,МесНомерМесяца+1,0)),\"\",H12+1),\"\")","v":26},{"$f":"IF(LEN(B14)>0,IF(B14=DAY(DATE(МесГод,МесНомерМесяца+1,0)),\"\",B14+1),\"\")","v":27},28,29,30,31,""]
[null,{"$f":"IF(LEN(B14)=0,\"\",IF(COUNTIF(Задания[ДАТА ВЫПОЛНЕНИЯ],DATE(МесГод,МесНомерМесяца,B14))>0,\"Срок выполнения задания!\",\"\"))","v":""},{"$f":"IF(LEN(C14)=0,\"\",IF(COUNTIF(Задания[ДАТА ВЫПОЛНЕНИЯ],DATE(МесГод,МесНомерМесяца,C14))>0,\"Срок выполнения задания!\",\"\"))","v":""},{"$f":"IF(LEN(D14)=0,\"\",IF(COUNTIF(Задания[ДАТА ВЫПОЛНЕНИЯ],DATE(МесГод,МесНомерМесяца,D14))>0,\"Срок выполнения задания!\",\"\"))","v":"Срок выполнения задания!"},{"$f":"IF(LEN(E14)=0,\"\",IF(COUNTIF(Задания[ДАТА ВЫПОЛНЕНИЯ],DATE(МесГод,МесНомерМесяца,E14))>0,\"Срок выполнения задания!\",\"\"))","v":""},{"$f":"IF(LEN(F14)=0,\"\",IF(COUNTIF(Задания[ДАТА ВЫПОЛНЕНИЯ],DATE(МесГод,МесНомерМесяца,F14))>0,\"Срок выполнения задания!\",\"\"))","v":""},{"$f":"IF(LEN(G14)=0,\"\",IF(COUNTIF(Задания[ДАТА ВЫПОЛНЕНИЯ],DATE(МесГод,МесНомерМесяца,G14))>0,\"Срок выполнения задания!\",\"\"))","v":""},{"$f":"IF(LEN(H14)=0,\"\",IF(COUNTIF(Задания[ДАТА ВЫПОЛНЕНИЯ],DATE(МесГод,МесНомерМесяца,H14))>0,\"Срок выполнения задания!\",\"\"))","v":""}]
[null,{"$f":"IF(LEN(H14)>0,IF(H14=DAY(DATE(МесГод,МесНомерМесяца+1,0)),\"\",H14+1),\"\")","v":""},{"$f":"IF(LEN(B16)>0,IF(B16=DAY(DATE(МесГод,МесНомерМесяца+1,0)),\"\",B16+1),\"\")","v":""},"","","","",""]
[null,{"$f":"IF(LEN(B16)=0,\"\",IF(COUNTIF(Задания[ДАТА ВЫПОЛНЕНИЯ],DATE(МесГод,МесНомерМесяца,B16))>0,\"Срок выполнения задания!\",\"\"))","v":""},{"$f":"IF(LEN(C16)=0,\"\",IF(COUNTIF(Задания[ДАТА ВЫПОЛНЕНИЯ],DATE(МесГод,МесНомерМесяца,C16))>0,\"Срок выполнения задания!\",\"\"))","v":""},{"$f":"IF(LEN(D16)=0,\"\",IF(COUNTIF(Задания[ДАТА ВЫПОЛНЕНИЯ],DATE(МесГод,МесНомерМесяца,D16))>0,\"Срок выполнения задания!\",\"\"))","v":""},{"$f":"IF(LEN(E16)=0,\"\",IF(COUNTIF(Задания[ДАТА ВЫПОЛНЕНИЯ],DATE(МесГод,МесНомерМесяца,E16))>0,\"Срок выполнения задания!\",\"\"))","v":""},{"$f":"IF(LEN(F16)=0,\"\",IF(COUNTIF(Задания[ДАТА ВЫПОЛНЕНИЯ],DATE(МесГод,МесНомерМесяца,F16))>0,\"Срок выполнения задания!\",\"\"))","v":""},{"$f":"IF(LEN(G16)=0,\"\",IF(COUNTIF(Задания[ДАТА ВЫПОЛНЕНИЯ],DATE(МесГод,МесНомерМесяца,G16))>0,\"Срок выполнения задания!\",\"\"))","v":""},{"$f":"IF(LEN(H16)=0,\"\",IF(COUNTIF(Задания[ДАТА ВЫПОЛНЕНИЯ],DATE(МесГод,МесНомерМесяца,H16))>0,\"Срок выполнения задания!\",\"\"))","v":""}]

{"sheet":"Представление \"Неделя\"","index":2,"n_rows":17,"n_cols":8,"rows_kept":17}
[null,"ЗАДАНИЯ","ПРЕДСТАВЛЕНИЕ \"МЕСЯЦ\""]
[null,"Выберите месяц:","Введите год:","Выберите номер недели:"]
[null,"Сентябрь",{"$f":"YEAR(TODAY())","v":2022},"Неделя 1"]
[null," ПРЕДСТАВЛЕНИЕ \"НЕДЕЛЯ\""]
[null,{"$f":"IF(WEEKDAY(DATEVALUE(\" 1 \"&НедМесяц&НедГод),2)=COLUMN(A$2),1,IF(LEN(A5)>0,A5+1,\"\"))","v":""},"","",1,2,3,4]
[null,{"$f":"IF(LEN(H5)>0,IF(H5=ПоследнийДеньМесяца_Неделя,\"\",H5+1),\"\")","v":5},{"$f":"IF(LEN(B6)>0,IF(B6=ПоследнийДеньМесяца_Неделя,\"\",B6+1),\"\")","v":6},7,8,9,10,11]
[null,{"$f":"IF(LEN(H6)>0,IF(H6=ПоследнийДеньМесяца_Неделя,\"\",H6+1),\"\")","v":12},13,14,15,16,17,18]
[null,{"$f":"IF(LEN(H7)>0,IF(H7=ПоследнийДеньМесяца_Неделя,\"\",H7+1),\"\")","v":19},20,21,22,23,24,25]
[null,{"$f":"IF(LEN(H8)>0,IF(H8=ПоследнийДеньМесяца_Неделя,\"\",H8+1),\"\")","v":26},27,28,29,30,"",""]
[null,{"$f":"IF(LEN(H9)>0,IF(H9=ПоследнийДеньМесяца_Неделя,\"\",H9+1),\"\")","v":""},"","","","","",""]
[null,"ПОНЕДЕЛЬНИК","ВТОРНИК","СРЕДА","ЧЕТВЕРГ","ПЯТНИЦА","СУББОТА","ВОСКРЕСЕНЬЕ"]
[null,{"$f":"IF(B14=\"\",IF(AND(ISNUMBER(A12),A12<ПоследнийДеньМесяца_Неделя),A12+1,\"\"),IF(B14<=7,\"\",INDEX(НедПредставлениеМесяц,НедНеделя,COLUMN(A$2))-7))","v":""},"","","","","",""]
[null,{"$f":"IF(LEN(B12)=0,\"\",IF(COUNTIF(Задания[ДАТА ВЫПОЛНЕНИЯ],DATE(НедГод,НедНомерМесяца,B12))>0,\"Срок выполнения задания!\",\"\"))","v":""},{"$f":"IF(LEN(C12)=0,\"\",IF(COUNTIF(Задания[ДАТА ВЫПОЛНЕНИЯ],DATE(НедГод,НедНомерМесяца,C12))>0,\"Срок выполнения задания!\",\"\"))","v":""},{"$f":"IF(LEN(D12)=0,\"\",IF(COUNTIF(Задания[ДАТА ВЫПОЛНЕНИЯ],DATE(НедГод,НедНомерМесяца,D12))>0,\"Срок выполнения задания!\",\"\"))","v":""},{"$f":"IF(LEN(E12)=0,\"\",IF(COUNTIF(Задания[ДАТА ВЫПОЛНЕНИЯ],DATE(НедГод,НедНомерМесяца,E12))>0,\"Срок выполнения задания!\",\"\"))","v":""},{"$f":"IF(LEN(F12)=0,\"\",IF(COUNTIF(Задания[ДАТА ВЫПОЛНЕНИЯ],DATE(НедГод,НедНомерМесяца,F12))>0,\"Срок выполнения задания!\",\"\"))","v":""},{"$f":"IF(LEN(G12)=0,\"\",IF(COUNTIF(Задания[ДАТА ВЫПОЛНЕНИЯ],DATE(НедГод,НедНомерМесяца,G12))>0,\"Срок выполнения задания!\",\"\"))","v":""},{"$f":"IF(LEN(H12)=0,\"\",IF(COUNTIF(Задания[ДАТА ВЫПОЛНЕНИЯ],DATE(НедГод,НедНомерМесяца,H12))>0,\"Срок выполнения задания!\",\"\"))","v":""}]
[null,{"$f":"INDEX(НедПредставлениеМесяц,НедНеделя,COLUMN(A$2))","v":""},{"$f":"INDEX(НедПредставлениеМесяц,НедНеделя,COLUMN(B$2))","v":""},{"$f":"INDEX(НедПредставлениеМесяц,НедНеделя,COLUMN(C$2))","v":""},{"$f":"INDEX(НедПредставлениеМесяц,НедНеделя,COLUMN(D$2))","v":1},{"$f":"INDEX(НедПредставлениеМесяц,НедНеделя,COLUMN(E$2))","v":2},{"$f":"INDEX(НедПредставлениеМесяц,НедНеделя,COLUMN(F$2))","v":3},{"$f":"INDEX(НедПредставлениеМесяц,НедНеделя,COLUMN(G$2))","v":4}]
[null,{"$f":"IF(LEN(B14)=0,\"\",IF(COUNTIF(Задания[ДАТА ВЫПОЛНЕНИЯ],DATE(НедГод,НедНомерМесяца,B14))>0,\"Срок выполнения задания!\",\"\"))","v":""},{"$f":"IF(LEN(C14)=0,\"\",IF(COUNTIF(Задания[ДАТА ВЫПОЛНЕНИЯ],DATE(НедГод,НедНомерМесяца,C14))>0,\"Срок выполнения задания!\",\"\"))","v":""},{"$f":"IF(LEN(D14)=0,\"\",IF(COUNTIF(Задания[ДАТА ВЫПОЛНЕНИЯ],DATE(НедГод,НедНомерМесяца,D14))>0,\"Срок выполнения задания!\",\"\"))","v":""},{"$f":"IF(LEN(E14)=0,\"\",IF(COUNTIF(Задания[ДАТА ВЫПОЛНЕНИЯ],DATE(НедГод,НедНомерМесяца,E14))>0,\"Срок выполнения задания!\",\"\"))","v":""},{"$f":"IF(LEN(F14)=0,\"\",IF(COUNTIF(Задания[ДАТА ВЫПОЛНЕНИЯ],DATE(НедГод,НедНомерМесяца,F14))>0,\"Срок выполнения задания!\",\"\"))","v":""},{"$f":"IF(LEN(G14)=0,\"\",IF(COUNTIF(Задания[ДАТА ВЫПОЛНЕНИЯ],DATE(НедГод,НедНомерМесяца,G14))>0,\"Срок выполнения задания!\",\"\"))","v":""},{"$f":"IF(LEN(H14)=0,\"\",IF(COUNTIF(Задания[ДАТА ВЫПОЛНЕНИЯ],DATE(НедГод,НедНомерМесяца,H14))>0,\"Срок выполнения задания!\",\"\"))","v":""}]
[null,{"$f":"IFERROR(IF(B14=\"\",IF(AND(ISNUMBER(A16),A16<ПоследнийДеньМесяца_Неделя),A16+1,$H$14+COLUMN(A$2)),IF(B14+7>ПоследнийДеньМесяца_Неделя,\"\",INDEX(НедПредставлениеМесяц,НедНеделя,COLUMN(A$2))+7)),\"\")","v":5},{"$f":"IFERROR(IF(C14=\"\",IF(AND(ISNUMBER(B16),B16<ПоследнийДеньМесяца_Неделя),B16+1,$H$14+COLUMN(B$2)),IF(C14+7>ПоследнийДеньМесяца_Неделя,\"\",INDEX(НедПредставлениеМесяц,НедНеделя,COLUMN(B$2))+7)),\"\")","v":6},{"$f":"IFERROR(IF(D14=\"\",IF(AND(ISNUMBER(C16),C16<ПоследнийДеньМесяца_Неделя),C16+1,$H$14+COLUMN(C$2)),IF(D14+7>ПоследнийДеньМесяца_Неделя,\"\",INDEX(НедПредставлениеМесяц,НедНеделя,COLUMN(C$2))+7)),\"\")","v":7},{"$f":"IFERROR(IF(E14=\"\",IF(AND(ISNUMBER(D16),D16<ПоследнийДеньМесяца_Неделя),D16+1,$H$14+COLUMN(D$2)),IF(E14+7>ПоследнийДеньМесяца_Неделя,\"\",INDEX(НедПредставлениеМесяц,НедНеделя,COLUMN(D$2))+7)),\"\")","v":8},{"$f":"IFERROR(IF(F14=\"\",IF(AND(ISNUMBER(E16),E16<ПоследнийДеньМесяца_Неделя),E16+1,$H$14+COLUMN(E$2)),IF(F14+7>ПоследнийДеньМесяца_Неделя,\"\",INDEX(НедПредставлениеМесяц,НедНеделя,COLUMN(E$2))+7)),\"\")","v":9},{"$f":"IFERROR(IF(G14=\"\",IF(AND(ISNUMBER(F16),F16<ПоследнийДеньМесяца_Неделя),F16+1,$H$14+COLUMN(F$2)),IF(G14+7>ПоследнийДеньМесяца_Неделя,\"\",INDEX(НедПредставлениеМесяц,НедНеделя,COLUMN(F$2))+7)),\"\")","v":10},{"$f":"IFERROR(IF(H14=\"\",IF(AND(ISNUMBER(G16),G16<ПоследнийДеньМесяца_Неделя),G16+1,$H$14+COLUMN(G$2)),IF(H14+7>ПоследнийДеньМесяца_Неделя,\"\",INDEX(НедПредставлениеМесяц,НедНеделя,COLUMN(G$2))+7)),\"\")","v":11}]
[null,{"$f":"IF(LEN(B16)=0,\"\",IF(COUNTIF(Задания[ДАТА ВЫПОЛНЕНИЯ],DATE(НедГод,НедНомерМесяца,B16))>0,\"Срок выполнения задания!\",\"\"))","v":""},{"$f":"IF(LEN(C16)=0,\"\",IF(COUNTIF(Задания[ДАТА ВЫПОЛНЕНИЯ],DATE(НедГод,НедНомерМесяца,C16))>0,\"Срок выполнения задания!\",\"\"))","v":""},{"$f":"IF(LEN(D16)=0,\"\",IF(COUNTIF(Задания[ДАТА ВЫПОЛНЕНИЯ],DATE(НедГод,НедНомерМесяца,D16))>0,\"Срок выполнения задания!\",\"\"))","v":""},{"$f":"IF(LEN(E16)=0,\"\",IF(COUNTIF(Задания[ДАТА ВЫПОЛНЕНИЯ],DATE(НедГод,НедНомерМесяца,E16))>0,\"Срок выполнения задания!\",\"\"))","v":""},{"$f":"IF(LEN(F16)=0,\"\",IF(COUNTIF(Задания[ДАТА ВЫПОЛНЕНИЯ],DATE(НедГод,НедНомерМесяца,F16))>0,\"Срок выполнения задания!\",\"\"))","v":""},{"$f":"IF(LEN(G16)=0,\"\",IF(COUNTIF(Задания[ДАТА ВЫПОЛНЕНИЯ],DATE(НедГод,НедНомерМесяца,G16))>0,\"Срок выполнения задания!\",\"\"))","v":""},{"$f":"IF(LEN(H16)=0,\"\",IF(COUNTIF(Задания[ДАТА ВЫПОЛНЕНИЯ],DATE(НедГод,НедНомерМесяца,H16))>0,\"Срок выполнения задания!\",\"\"))","v":""}]